[Event "FTX Road to Miami KO 2022"]
[Site "Online"]
[Date "2022.07.14"]
[Round "1.1"]
[White "Aronian, Levon"]
[Black "Erigaisi Arjun"]
[Result "1/2-1/2"]
[ECO "B22"]
[WhiteElo "2775"]
[BlackElo "2689"]
[Annotator "TA"]
[PlyCount "84"]
[EventDate "2022.07.09"]
[EventType "k.o."]
[EventCountry "NET"]
[SourceTitle "playchess.com"]
[Source "ChessBase"]
[SourceQuality "1"]
[TimeControl "900+10"]

{[%evp 19,84,0,6,0,0,-5,0,0,0,0,0,-5,18,13,18,19,23,4,14,0,0,0,0,0,0,0,0,-18,0,0,-8,-6,-29,-54,0,-19,-4,-59,-51,-87,-57,-156,-158,-159,-102,-81,-81,-143,-6,-3,-6,-35,0,0,0,0,0,0,0,0,0,0,0,0,0,0,0]} 1. e4 {[%emt 0:00:00]} c5 {[%emt 0:00:00]} 2. Nf3 {[%emt 0:00:03]} e6 {[%emt 0:00:02]} 3. c3 {[%emt 0:00:04]} Nf6 {[%emt 0:00:02]} 4. e5 {[%emt 0:00:01]} Nd5 {[%emt 0:00:01]} 5. d4 {[%emt 0:00:00]} cxd4 {[%emt 0:00:01]} 6. cxd4 {[%emt 0:00:01]} d6 {[%emt 0:00:02]} 7. Bc4 {[%emt 0:00:02]} Be7 {[%emt 0:00:02]} 8. O-O {[%emt 0:00:01]} O-O {[%emt 0:00:01]} 9. Qe2 {[%emt 0:00:06]} Nc6 {[%emt 0:00:02]} 10. Rd1 $1 {[%emt 0:00:02][%mdl 4] now scores much better than the old 10.Nc3.} Qc7 {[%emt 0:00:03]} 11. Na3 {[%emt 0:00:24] B22: Sicilian: 2 c3.} a6 {[%emt 0:00:23] [#] Inhibits Nb5.} 12. Bd2 $146 {[%emt 0:00:07]} ({Predecessor:} 12. Nc2 Ncb4 {0-1 (12) Kleinert,J (2060)-Ringoir,T (2199) Dresden 2007}) 12... dxe5 {[%emt 0:00:21]} 13. dxe5 {[%emt 0:00:03]} b5 {[%emt 0:00:11]} 14. Bxd5 {[%emt 0:00:34]} exd5 {[%emt 0:00:01]} 15. Rac1 {[%emt 0:00:01]} Qb7 {[%emt 0:01:29]} 16. Nc2 {[%emt 0:00:32]} Be6 {[%emt 0:01:04]} 17. h3 {[%emt 0:02:13]} Rac8 {[%emt 0:00:25]} 18. Bg5 {[%emt 0:00:20]} Bf5 {[%emt 0:01:47]} (18... Bxg5 {with more complications.} 19. Nxg5 Bf5 20. f4 h6) 19. Bxe7 {[%emt 0:00:11]} (19. Rxd5 $2 Bxg5 20. Nxg5 Nb4 $1 $19 {[%mdl 512]}) 19... Qxe7 {[%emt 0:00:02]} 20. Ncd4 {[%emt 0:00:16]} ({Of course not} 20. Rxd5 Nb4 21. Rd2 Nxc2 22. Rdxc2 Bxc2 23. Rxc2 Qe6 $19) 20... Nxd4 {[%emt 0:00:03]} 21. Nxd4 {[%emt 0:00:03]} Bxh3 {[%emt 0:01:08][%cal Bf5h3,Bh3c8,Bc8d7,Bd7g4][%mdl 32] ...Rxc1 is the strong threat.} 22. Rxc8 {[%emt 0:01:06]} Bxc8 {[%emt 0:00:00]} 23. f4 {[%emt 0:00:01]} g6 {[%emt 0:00:19]} 24. Qf3 {[%emt 0:01:05]} Qh4 {[%emt 0:01:01] And now ...Bg4 would win.} 25. Rc1 {[%emt 0:01:00]} Bd7 {[%emt 0:02:23]} 26. Qf2 {[%emt 0:01:02]} Qe7 {[%emt 0:00:40]} (26... Qg4 $15) 27. Qg3 {[%emt 0:00:21]} Rc8 {[%emt 0:00:23][%cal Bf8c8,Bc8c4,Bc4d4][%mdl 32]} 28. Rd1 {[%emt 0:00:35]} (28. Rxc8+ $11 Bxc8 29. Qc3) 28... Kh8 {[%emt 0:01:08]} 29. Kh2 {[%emt 0:00:02]} h5 {[%emt 0:00:22]} 30. b4 {[%emt 0:01:13] [#]} ({Better is} 30. b3 $15) 30... Bg4 $1 $17 {[%emt 0:00:36]} ({And not} 30... Qxb4 31. Qg5 Re8 32. f5 $15) 31. Rd3 {[%emt 0:00:22]} Kh7 {[%emt 0:02:25]} (31... Qxb4 $142 {Strongly threatening ...Rc4.} 32. Qh4 Kh7) 32. a3 {[%emt 0:00:06]} Rc4 {[%emt 0:00:02]} 33. Qe1 {[%emt 0:00:17] [#]} ({White should play} 33. Rd2) 33... Qa7 {[%emt 0:00:24]} (33... g5 $1 $17 {[%cal Rg5f4]} 34. f5 f6) 34. Qh4 $1 $11 {[%emt 0:00:22]} Qb6 {[%emt 0:00:40]} ({Don't take} 34... Rxd4 35. Qf2 $14) 35. Qe7 {[%emt 0:01:47]} Rxd4 {[%emt 0:01:55]} 36. Qxf7+ {[%emt 0:00:01] The position is equal.} Kh8 {[%emt 0:00:02]} 37. Qf8+ {[%emt 0:00:42]} Kh7 {[%emt 0:00:01]} 38. Qe7+ {[%emt 0:00:02]} Kg8 {[%emt 0:00:30]} 39. Qe8+ {[%emt 0:00:27]} Kg7 {[%emt 0:00:02]} 40. Qe7+ {[%emt 0:00:01]} Kg8 {[%emt 0:00:01]} 41. Qe8+ {[%emt 0:00:00]} Kg7 {[%emt 0:00:01]} 42. Qe7+ {[%emt 0:00:00]} Kg8 {[%emt 0:00:01] Weighted Error Value: White=0.12 (very precise) /Black=0.18 (very precise)} 1/2-1/2

[Event "FTX Road to Miami KO 2022"]
[Site "Online"]
[Date "2022.07.14"]
[Round "1.1"]
[White "Rapport, Richard"]
[Black "Xiong, Jeffery"]
[Result "1/2-1/2"]
[ECO "B50"]
[WhiteElo "2764"]
[BlackElo "2691"]
[Annotator "TA"]
[PlyCount "223"]
[EventDate "2022.07.09"]
[EventType "k.o."]
[EventCountry "NET"]
[SourceTitle "playchess.com"]
[Source "ChessBase"]
[SourceQuality "1"]
[TimeControl "900+10"]

{[%evp 37,223,0,0,0,0,-9,0,0,0,-8,0,-29,0,0,0,-6,-6,-6,-6,-6,-7,-7,-7,-7,-11,-55,-55,-55,-48,-79,-79,-79,-79,-88,-81,-83,-75,-113,-7,-127,-119,-203,-178,-230,-230,-230,-232,-232,-75,-89,-64,-64,-64,-64,-64,-64,-64,-65,-64,-64,-64,-64,-58,-58,-8,-8,-8,-8,-8,-8,0,-8,-8,-8,-7,-24,-7,-8,-14,-14,-8,-1469,-8,-7,-6,-55,-8,-80,-8,-8,0,-91,0,-55,-55,-12849,-8,-22,0,-8,0,0,0,0,0,0,0,0,0,0,0,0,0,0,0,0,0,0,0,-206,-8,-8,-8,-8,-8,-8,-8,-8,-8,-8,-8,-8,-8,-8,-8,-8,-8,-8,-8,-8,-8,-8,-8,-8,-8,-8,-8,-8,-8,-8,-8,-8,-8,-8,-8,-8,-8,-8,-8,-9,-9,-8,-8,-8,-8,-8,-8,-8,-8,-8,-8,-8,-8,-8,-8,-8,-8,-8,-8,-8,-8,-8,0,-8,0,-8,0,-8]} 1. Nf3 {[%emt 0:00:00]} c5 {[%emt 0:00:00]} 2. e4 {[%emt 0:00:02]} d6 {[%emt 0:00:02]} 3. c3 {[%emt 0:00:01]} Nf6 {[%emt 0:00:02]} 4. Be2 {[%emt 0:00:01]} Bd7 {[%emt 0:00:57]} 5. Qc2 {[%emt 0:00:03]} Bc6 {[%emt 0:00:03]} 6. d3 {[%emt 0:00:03]} g6 {[%emt 0:00:38]} 7. O-O {[%emt 0:00:04]} Bg7 {[%emt 0:00:01]} 8. Nbd2 {[%emt 0:00:16]} Nbd7 {[%emt 0:00:01]} 9. d4 {[%emt 0:00:02]} cxd4 {[%emt 0:00:01]} 10. Nxd4 {[%emt 0:00:01]} O-O {[%emt 0:00:09]} 11. Rd1 {[%emt 0:00:29]} Qc7 {[%emt 0:00:57]} 12. Nxc6 {[%emt 0:00:37]} bxc6 {[%emt 0:00:02]} 13. Nf1 {[%emt 0:00:04]} Nc5 {[%emt 0:00:09]} 14. Bf3 {[%emt 0:00:16]} a5 {[%emt 0:00:10]} 15. Be3 {[%emt 0:00:09]} Nfd7 {[%emt 0:00:02]} 16. Be2 {[%emt 0:00:20]} a4 {[%emt 0:00:48]} 17. Nd2 {[%emt 0:00:19]} d5 {[%emt 0:00:46]} 18. b4 {[%emt 0:00:47]} axb3 {[%emt 0:00:09]} 19. axb3 {[%emt 0:00:00]} e6 {[%emt 0:01:50]} 20. b4 {[%emt 0:01:03]} Nb7 {[%emt 0:00:02]} 21. Rac1 {[%emt 0:02:15]} Nd6 {[%emt 0:02:15]} 22. Bf4 {[%emt 0:00:24]} Ne5 {[%emt 0:00:20]} 23. Bg3 {[%emt 0:00:47]} Qb6 {[%emt 0:00:35]} 24. Kh1 {[%emt 0:00:44]} Ra3 {[%emt 0:00:34]} 25. c4 {[%emt 0:01:03]} dxc4 {[%emt 0:02:20]} 26. f4 {[%emt 0:00:12]} Nd3 {[%emt 0:01:10]} 27. Nxc4 {[%emt 0:00:33]} Nxc4 {[%emt 0:00:00]} 28. Rxd3 {[%emt 0:00:02]} Ne3 {[%emt 0:00:42]} 29. Qd2 {[%emt 0:01:28]} Rxd3 {[%emt 0:00:04]} 30. Qxd3 {[%emt 0:00:01]} Rd8 {[%emt 0:00:30]} 31. Rxc6 {[%emt 0:00:48]} Qxc6 {[%emt 0:00:43]} 32. Qxd8+ {[%emt 0:00:03]} Bf8 {[%emt 0:00:00]} 33. Qd2 {[%emt 0:02:03]} Qxe4 {[%emt 0:00:02]} 34. Bf3 {[%emt 0:00:41]} Qb1+ {[%emt 0:00:03]} 35. Qe1 {[%emt 0:00:01]} Qb3 {[%emt 0:00:10]} 36. b5 {[%emt 0:00:26]} Nf5 {[%emt 0:00:50]} 37. Qf1 {[%emt 0:00:45]} Bd6 {[%emt 0:00:19]} (37... Bc5 $17 {aiming for ...Qe3.} 38. Be1 Ne3) 38. b6 {[%emt 0:02:20]} (38. Bf2 $11) 38... Qxb6 {[%emt 0:00:15]} 39. Be4 {[%emt 0:00:05]} (39. Bf2 $17 Bc5 40. Bxc5 Qxc5 41. Qe1) 39... Qc5 {[%emt 0:01:28]} 40. Qe1 {[%emt 0:01:03]} (40. Bf2 $142 Ne3 41. Qe2 Bxf4 42. g3) 40... Nxg3+ $19 {[%emt 0:00:34]} 41. hxg3 {[%emt 0:00:00]} Qh5+ {[%emt 0:00:00]} 42. Kg1 {[%emt 0:00:01]} g5 $2 {[%emt 0:00:33]} (42... Bc5+ $19 {and Black stays clearly on top.} 43. Kf1 Bb6) 43. Qa5 $17 {[%emt 0:00:24]} Qd1+ {[%emt 0:00:45]} 44. Kh2 {[%emt 0:00:01]} Be7 {[%emt 0:00:26]} 45. Bf3 {[%emt 0:00:11]} Qd4 {[%emt 0:00:17]} 46. fxg5 {[%emt 0:00:28]} Kg7 {[%emt 0:00:01]} 47. Bh5 {[%emt 0:00:28]} Bd6 {[%emt 0:00:10]} 48. Kh3 {[%emt 0:00:25]} Qe3 $1 {[%emt 0:00:55]} 49. Bf3 {[%emt 0:00:01]} Be5 {[%emt 0:00:08]} 50. Qb4 {[%emt 0:00:29]} Qc1 {[%emt 0:00:08]} ({Black should try} 50... Qxg5 $15 51. Qg4 Bf6) 51. Qh4 $11 {[%emt 0:00:09]} Qh1+ {[%emt 0:00:08]} 52. Kg4 {[%emt 0:00:01]} Qb1 {[%emt 0:00:01]} 53. Kh3 {[%emt 0:00:11]} Qh1+ {[%emt 0:00:09]} 54. Kg4 {[%emt 0:00:01]} Qe1 {[%emt 0:00:04]} 55. Kh3 {[%emt 0:00:13]} Kf8 {[%emt 0:00:12]} 56. Kh2 {[%emt 0:00:09]} (56. Bc6 {keeps more tension.} Qh1+ 57. Kg4 Qc1 58. Bf3) 56... Qe3 {[%emt 0:00:27]} 57. Qxh7 {[%emt 0:00:25]} (57. Kh3 {seems wilder.} Qg1 58. Kg4 Qe1 59. Kh3) 57... Qxg5 {[%emt 0:00:03]} 58. Qh3 {[%emt 0:00:02]} f5 {[%emt 0:00:14]} 59. Be2 $2 {[%emt 0:00:35][%mdl 8192]} (59. Bd1 $11) 59... Ke7 $2 {[%emt 0:00:01]} (59... Qe3 $19 {( -> ...Bd4)} 60. Qh4 Qxe2 61. Qd8+ Kf7 62. Qd7+ Kf6) 60. Bf3 $11 {[%emt 0:00:11]} Kd6 {[%emt 0:00:02]} 61. Bh5 {[%emt 0:00:15]} (61. Bd1 $11) 61... Kd5 {[%emt 0:00:22]} (61... Kc5 $15 {deserves consideration.} 62. Be8 Bc7) 62. Bf7 {[%emt 0:00:05] [#]} (62. Be8 $1 $11) 62... Qg7 {[%emt 0:00:06]} (62... Bc7 $1 $17) 63. Bh5 $11 {[%emt 0:00:14]} Qg5 {[%emt 0:00:22]} (63... Ke4 $11) 64. Bf7 $17 {[%emt 0:00:01]} Kd6 {[%emt 0:00:17]} 65. Bh5 {[%emt 0:00:02]} Kc5 {[%emt 0:00:03]} 66. Bf7 $2 {[%emt 0:00:05][%mdl 8192] [#]} (66. Be8 $15) 66... Kd5 $2 {[%emt 0:00:01]} ({Better is} 66... f4 $1 $19 {[%cal Rf4g3]} 67. Qh4 fxg3+ 68. Kh3 Qf5+ 69. Qg4 Qxf7) 67. Be8 $11 {[%emt 0:00:07]} Ke4 {[%emt 0:00:21]} 68. Bf7 {[%emt 0:00:29]} Qf6 {[%emt 0:00:04]} ({Reject} 68... Kd5 $6 69. Be8 $17) 69. Qh5 {[%emt 0:00:05]} Kd4 {[%emt 0:00:17]} 70. Kh3 {[%emt 0:00:13]} Kc5 {[%emt 0:00:11]} 71. Qg6 {[%emt 0:00:12]} Qh8+ {[%emt 0:00:01]} 72. Qh5 {[%emt 0:00:01]} Qg7 {[%emt 0:00:01]} 73. Qg6 {[%emt 0:00:03]} Qh8+ {[%emt 0:00:13]} 74. Qh5 {[%emt 0:00:01]} Qf6 {[%emt 0:00:00]} 75. Qg6 {[%emt 0:00:04]} Qd8 {[%emt 0:00:10]} 76. Qh5 {[%emt 0:00:36]} (76. Bg8 {leads to mate.} Qd1 77. Kh2 Bd4 78. g4 Qg1+ 79. Kh3 Qh1+ 80. Kg3 Qe1+ 81. Kh3 Be5 82. gxf5 exf5) 76... Qd7 {[%emt 0:00:23]} 77. Bg6 {[%emt 0:00:13]} Qd2 {[%emt 0:00:26]} 78. Bxf5 $2 {[%emt 0:00:25]} (78. Qf3 $11) 78... exf5 $2 {[%emt 0:00:00]} ({Black should play} 78... Qe1 $19 {[%csl Ge5][%cal Re1g3]} 79. Qg5 exf5 80. Qe7+ Kd4 81. Qd7+ Ke3 82. Qa7+ Kd3 83. Qd7+ Ke2 84. Qb5+ Kf2 85. Qb6+ Kf1) 79. Qxf5 $11 {[%emt 0:00:02]} Qh6+ {[%emt 0:00:04]} 80. Kg4 {[%emt 0:00:01]} Kd6 {[%emt 0:00:08]} 81. Qd3+ {[%emt 0:00:04]} Ke7 {[%emt 0:00:02]} 82. Qf5 {[%emt 0:00:01]} Qh8 {[%emt 0:00:19]} 83. Kf3 {[%emt 0:00:08]} Qa8+ {[%emt 0:00:02]} 84. Kg4 {[%emt 0:00:06]} Qa4+ {[%emt 0:00:08]} 85. Kh3 {[%emt 0:00:09]} Qa1 {[%emt 0:00:15]} 86. Qh7+ {[%emt 0:00:07]} Kd6 {[%emt 0:00:01]} 87. Qd3+ {[%emt 0:00:05]} Ke6 {[%emt 0:00:10]} 88. Qg6+ {[%emt 0:00:03]} Bf6 {[%emt 0:00:04]} 89. Qe4+ {[%emt 0:00:03]} Kf7 {[%emt 0:00:08]} 90. Qh7+ {[%emt 0:00:05]} Kf8 {[%emt 0:00:03]} 91. Qe4 {[%emt 0:00:06]} Qh1+ {[%emt 0:00:10]} 92. Kg4 {[%emt 0:00:01]} Kg7 {[%emt 0:00:05]} 93. Qd5 {[%emt 0:00:37]} Qc1 {[%emt 0:00:19]} 94. Kh3 {[%emt 0:00:29]} Qh6+ {[%emt 0:00:05]} 95. Kg4 {[%emt 0:00:01]} Qg6+ {[%emt 0:00:00]} 96. Kf3 {[%emt 0:00:04]} Kh6 {[%emt 0:00:12]} 97. Qe4 {[%emt 0:00:24]} Qh5+ {[%emt 0:00:01]} 98. g4 {[%emt 0:00:01]} Qa5 {[%emt 0:00:24]} 99. g5+ {[%emt 0:00:32]} Bxg5 {[%emt 0:00:07]} 100. Qe6+ {[%emt 0:00:03]} Kg7 {[%emt 0:00:01]} 101. Qd7+ {[%emt 0:00:02]} Kf8 {[%emt 0:00:02]} 102. Qd6+ {[%emt 0:00:08]} Be7 {[%emt 0:00:05]} 103. Qh6+ {[%emt 0:00:03]} Ke8 {[%emt 0:00:01]} 104. Qg6+ {[%emt 0:00:09]} Kd8 {[%emt 0:00:05]} 105. Qg8+ {[%emt 0:00:06]} Kd7 {[%emt 0:00:01]} 106. Qg4+ {[%emt 0:00:03]} Kc7 {[%emt 0:00:02]} 107. Qc4+ {[%emt 0:00:02]} Bc5 {[%emt 0:00:34]} 108. Qf7+ {[%emt 0:00:03]} Kd8 {[%emt 0:00:09]} 109. Qd5+ {[%emt 0:00:03]} Kc7 {[%emt 0:00:05]} 110. Qf7+ {[%emt 0:00:02]} Kd8 {[%emt 0:00:02]} 111. Qd5+ {[%emt 0:00:01]} Kc7 {[%emt 0:00:01]} 112. Qf7+ {[%emt 0:00:01]} 1/2-1/2

[Event "FTX Road to Miami KO 2022"]
[Site "Online"]
[Date "2022.07.14"]
[Round "1.1"]
[White "Giri, Anish"]
[Black "Duda, Jan-Krzysztof"]
[Result "1/2-1/2"]
[ECO "A07"]
[WhiteElo "2760"]
[BlackElo "2750"]
[PlyCount "41"]
[EventDate "2022.07.09"]
[EventType "k.o."]
[EventCountry "NET"]
[TimeControl "900+10"]

1. Nf3 {[%emt 0:00:00]} d5 {[%emt 0:00:00]} 2. g3 {[%emt 0:00:07]} Bg4 {[%emt 0:00:20]} 3. Bg2 {[%emt 0:00:02]} e6 {[%emt 0:00:01]} 4. h3 {[%emt 0:00:04]} Bxf3 {[%emt 0:00:05]} 5. Bxf3 {[%emt 0:00:02]} Nf6 {[%emt 0:00:01]} 6. d3 {[%emt 0:00:29]} Nbd7 {[%emt 0:00:03]} 7. Bg2 {[%emt 0:00:17]} c6 {[%emt 0:00:02]} 8. O-O {[%emt 0:00:12]} Bd6 {[%emt 0:00:22]} 9. e4 {[%emt 0:00:03]} Qc7 {[%emt 0:00:32]} 10. Kh1 {[%emt 0:01:39]} O-O {[%emt 0:00:31]} 11. f4 {[%emt 0:00:14]} dxe4 {[%emt 0:00:02]} 12. dxe4 {[%emt 0:00:00]} e5 {[%emt 0:00:00]} 13. f5 {[%emt 0:00:05]} h6 {[%emt 0:00:11]} 14. Nd2 {[%emt 0:00:53]} Be7 {[%emt 0:00:28]} 15. Qe2 {[%emt 0:01:19]} a5 {[%emt 0:01:44]} 16. g4 {[%emt 0:00:24]} Nh7 {[%emt 0:00:02]} 17. Nf3 {[%emt 0:00:03]} Ng5 {[%emt 0:00:02]} 18. Nh2 {[%emt 0:00:13]} Nh7 {[%emt 0:00:02]} 19. Nf3 {[%emt 0:00:27]} Ng5 {[%emt 0:00:02]} 20. Nh2 {[%emt 0:00:06]} Nh7 {[%emt 0:00:02]} 21. Nf3 {[%emt 0:00:13]} 1/2-1/2

[Event "FTX Road to Miami KO 2022"]
[Site "Online"]
[Date "2022.07.14"]
[Round "1.1"]
[White "Duda, Jan-Krzysztof"]
[Black "Giri, Anish"]
[Result "1/2-1/2"]
[ECO "B51"]
[WhiteElo "2750"]
[BlackElo "2760"]
[PlyCount "158"]
[EventDate "2022.07.09"]
[EventType "k.o."]
[EventCountry "NET"]
[TimeControl "900+10"]

1. e4 {[%emt 0:00:00]} c5 {[%emt 0:00:00]} 2. Nf3 {[%emt 0:00:03]} d6 {[%emt 0:00:01]} 3. Bb5+ {[%emt 0:00:04]} Nd7 {[%emt 0:00:02]} 4. d3 {[%emt 0:00:10]} Ngf6 {[%emt 0:00:23]} 5. c4 {[%emt 0:00:04]} g6 {[%emt 0:00:03]} 6. Nc3 {[%emt 0:00:03]} Bg7 {[%emt 0:00:01]} 7. h3 {[%emt 0:00:10]} O-O {[%emt 0:00:01]} 8. Ba4 {[%emt 0:00:02]} Nb8 {[%emt 0:00:01]} 9. O-O {[%emt 0:00:38]} Bd7 {[%emt 0:00:02]} 10. Bxd7 {[%emt 0:00:19]} Nfxd7 {[%emt 0:00:01]} 11. Be3 {[%emt 0:01:24]} Nc6 {[%emt 0:00:03]} 12. d4 {[%emt 0:00:05]} Rc8 {[%emt 0:00:02]} 13. b3 {[%emt 0:00:39]} a6 {[%emt 0:00:23]} 14. Rc1 {[%emt 0:00:13]} Qa5 {[%emt 0:00:47]} 15. a4 {[%emt 0:05:52]} e6 {[%emt 0:01:25]} 16. Ne2 {[%emt 0:00:50]} cxd4 {[%emt 0:00:12]} 17. Nexd4 {[%emt 0:00:23]} Nc5 {[%emt 0:01:36]} 18. Qc2 {[%emt 0:00:48]} Qb6 {[%emt 0:04:39]} 19. Nxc6 {[%emt 0:00:57]} Qxc6 {[%emt 0:00:35]} 20. Nd2 {[%emt 0:00:11]} a5 {[%emt 0:00:45]} 21. Rfe1 {[%emt 0:00:55]} Rfe8 {[%emt 0:00:46]} 22. Qb1 {[%emt 0:00:06]} b6 {[%emt 0:00:37]} 23. Rcd1 {[%emt 0:00:44]} h6 {[%emt 0:02:21]} 24. f3 {[%emt 0:00:16]} Rcd8 {[%emt 0:00:28]} 25. Bf2 {[%emt 0:00:24]} Na6 {[%emt 0:01:43]} 26. f4 {[%emt 0:00:34]} Nc5 {[%emt 0:00:56]} 27. Nf3 {[%emt 0:00:07]} f5 {[%emt 0:00:17]} 28. Bxc5 {[%emt 0:01:13]} bxc5 {[%emt 0:00:38]} 29. exf5 {[%emt 0:00:28]} gxf5 {[%emt 0:00:04]} 30. Rd3 {[%emt 0:00:01]} Bf6 {[%emt 0:00:12]} 31. Re2 {[%emt 0:00:22]} Kf7 {[%emt 0:00:03]} 32. Qe1 {[%emt 0:00:05]} Ra8 {[%emt 0:00:54]} 33. Kh1 {[%emt 0:00:45]} Re7 {[%emt 0:00:10]} 34. Red2 {[%emt 0:00:32]} Qe4 {[%emt 0:00:12]} 35. Re3 {[%emt 0:00:18]} Qc6 {[%emt 0:00:09]} 36. Rde2 {[%emt 0:00:36]} Qd7 {[%emt 0:00:01]} 37. Qd2 {[%emt 0:00:11]} Qc6 {[%emt 0:00:03]} 38. Rd3 {[%emt 0:00:01]} Ra6 {[%emt 0:00:11]} 39. Kh2 {[%emt 0:00:04]} Re8 {[%emt 0:00:04]} 40. Qd1 {[%emt 0:00:33]} Rg8 {[%emt 0:00:22]} 41. Ree3 {[%emt 0:00:22]} Qc7 {[%emt 0:00:05]} 42. Ne1 {[%emt 0:00:07]} Ke7 {[%emt 0:00:24]} 43. Qh5 {[%emt 0:00:12]} Bd4 {[%emt 0:00:06]} 44. Qxf5 {[%emt 0:00:06]} Qd7 {[%emt 0:00:13]} 45. Nf3 {[%emt 0:00:23]} Bf6 {[%emt 0:00:22]} 46. Qh7+ {[%emt 0:00:11]} Rg7 {[%emt 0:00:01]} 47. Qxh6 {[%emt 0:00:01]} Ra8 {[%emt 0:00:01]} 48. Ng5 {[%emt 0:00:17]} Rag8 {[%emt 0:00:01]} 49. h4 {[%emt 0:00:11]} Rg6 {[%emt 0:00:20]} 50. Qh7+ {[%emt 0:00:10]} R8g7 {[%emt 0:00:03]} 51. Qh5 {[%emt 0:00:02]} Bxg5 {[%emt 0:00:22]} 52. fxg5 {[%emt 0:00:07]} Kd8 {[%emt 0:00:01]} 53. Qf3 {[%emt 0:00:12]} Rh7 {[%emt 0:00:06]} 54. g3 {[%emt 0:00:02]} Kc7 {[%emt 0:00:16]} 55. Qa8 {[%emt 0:00:07]} Rxg5 {[%emt 0:00:14]} 56. Qxa5+ {[%emt 0:00:16]} Kb7 {[%emt 0:00:06]} 57. Qb5+ {[%emt 0:00:06]} Kc7 {[%emt 0:00:04]} 58. Qa5+ {[%emt 0:00:16]} Kb7 {[%emt 0:00:02]} 59. b4 {[%emt 0:00:09]} Rxh4+ {[%emt 0:00:39]} 60. gxh4 {[%emt 0:00:21]} Qh7 {[%emt 0:00:01]} 61. Rh3 {[%emt 0:00:08]} Qe4 {[%emt 0:00:12]} 62. Qb5+ {[%emt 0:00:10]} Kc7 {[%emt 0:00:04]} 63. Qa5+ {[%emt 0:00:16]} Kb7 {[%emt 0:00:02]} 64. Qb5+ {[%emt 0:00:14]} Kc7 {[%emt 0:00:01]} 65. hxg5 {[%emt 0:00:09]} Qe2+ {[%emt 0:00:01]} 66. Kg1 {[%emt 0:00:02]} Qe1+ {[%emt 0:00:01]} 67. Kg2 {[%emt 0:00:00]} Qe2+ {[%emt 0:00:00]} 68. Kg1 {[%emt 0:00:04]} Qe1+ {[%emt 0:00:01]} 69. Kg2 {[%emt 0:00:02]} Qe2+ {[%emt 0:00:01]} 70. Kg3 {[%emt 0:00:00]} Qxd3+ {[%emt 0:00:01]} 71. Kf4 {[%emt 0:00:31]} Qd4+ {[%emt 0:00:42]} 72. Kf3 {[%emt 0:00:05]} Qd3+ {[%emt 0:00:01]} 73. Kf2 {[%emt 0:00:01]} Qd2+ {[%emt 0:00:04]} 74. Kf3 {[%emt 0:00:07]} Qd3+ {[%emt 0:00:01]} 75. Kg4 {[%emt 0:00:03]} Qe4+ {[%emt 0:00:03]} 76. Kh5 {[%emt 0:00:01]} Qh7+ {[%emt 0:00:02]} 77. Kg4 {[%emt 0:00:01]} Qe4+ {[%emt 0:00:00]} 78. Kg3 {[%emt 0:00:01]} Qd3+ {[%emt 0:00:05]} 79. Kg4 {[%emt 0:00:18]} Qe4+ {[%emt 0:00:03]} 1/2-1/2